[Event "69th RUS-ch Women Higher League 2019"]
[Site "Yaroslavl"]
[Date "2019.07.04"]
[Round "7.22"]
[White "Faizutdinova, Diana"]
[Black "Utiatskaja, Irina"]
[Result "0-1"]
[ECO "A10"]
[WhiteElo "2061"]
[BlackElo "2192"]
[Annotator "NA"]
[PlyCount "90"]
[EventDate "2019.06.27"]
[EventType "swiss"]
[EventCountry "RUS"]
[SourceTitle "playchess.com"]
[Source "ChessBase"]
[SourceQuality "1"]
[TimeControl "40/5400+30:1800+30"]

1. c4 {[%emt 0:00:00]} g6 {[%emt 0:03:27]} 2. Nc3 {[%emt 0:00:00]} Bg7 {[%emt 0:00:11]} 3. g3 {[%emt 0:00:00]} Nf6 {[%emt 0:00:46]} 4. Bg2 {[%emt 0:00:00]} O-O {[%emt 0:00:11]} 5. e3 {[%emt 0:00:22]} e5 {[%emt 0:03:00]} 6. Nge2 {[%emt 0:00:05]} d6 {[%emt 0:01:33]} 7. d3 {[%emt 0:03:37]} Nc6 {[%emt 0:03:39]} 8. O-O {[%emt 0:00:41]} Re8 {[%emt 0:07:42]} 9. h3 {[%emt 0:05:03]} Be6 {[%emt 0:04:39]} 10. Nd5 {[%emt 0:02:36]} Qd7 {[%emt 0:00:44]} 11. Kh2 {[%emt 0:00:27]} Rad8 {[%emt 0:01:46]} 12. Qa4 {[%emt 0:10:05]} a6 {[%emt 0:07:26]} 13. Bd2 {[%emt 0:07:36]} Qc8 {[%emt 0:05:17]} 14. Bc3 {[%emt 0:06:36]} Ne7 {[%emt 0:02:46]} 15. e4 {[%emt 0:07:27]} Nexd5 {[%emt 0:07:37]} 16. cxd5 {[%emt 0:00:24]} Bd7 {[%emt 0:00:04]} 17. Qb3 {[%emt 0:04:46]} Qb8 {[%emt 0:01:58]} 18. Rac1 {[%emt 0:14:08]} c6 {[%emt 0:01:40]} 19. Ba5 {[%emt 0:00:39]} Rc8 {[%emt 0:00:03]} 20. Nc3 {[%emt 0:01:14]} cxd5 {[%emt 0:00:45]} 21. exd5 {[%emt 0:01:09]} Bh6 {[%emt 0:08:45]} 22. Rc2 {[%emt 0:03:12]} b5 {[%emt 0:03:04]} 23. Ne4 {[%emt 0:06:20]} Nxe4 {[%emt 0:00:32]} 24. dxe4 {[%emt 0:00:51]} Rxc2 {[%emt 0:03:22]} 25. Qxc2 {[%emt 0:00:04]} Rc8 {[%emt 0:00:04]} 26. Qb3 {[%emt 0:01:23]} Rc4 {[%emt 0:00:45]} 27. Bb4 {[%emt 0:03:19]} Qc7 {[%emt 0:07:38]} 28. Qa3 {[%emt 0:01:21]} Bf8 {[%emt 0:00:16]} 29. f4 {[%emt 0:02:47]} exf4 {[%emt 0:01:28]} 30. Rxf4 {[%emt 0:05:41]} Rc2 {[%emt 0:02:25]} 31. Rf6 {[%emt 0:02:06]} Qc8 {[%emt 0:04:17]} 32. g4 {[%emt 0:05:01]} Bg7 {[%emt 0:03:00]} 33. Rf1 {[%emt 0:05:24]} Bxb2 {[%emt 0:05:50]} 34. Qe3 {[%emt 0:01:47]} Qc4 {[%emt 0:04:42]} 35. Bd2 {[%emt 0:00:36]} Be5+ {[%emt 0:00:25]} 36. Kh1 {[%emt 0:00:06]} Be8 {[%emt 0:02:19]} 37. Rc1 {[%emt 0:00:53]} Rxc1+ {[%emt 0:00:42]} 38. Bxc1 {[%emt 0:00:04]} Qxa2 {[%emt 0:00:59]} 39. Bd2 {[%emt 0:01:00]} Qa1+ {[%emt 0:00:23]} 40. Be1 {[%emt 0:00:00]} b4 {[%emt 0:00:00]} 41. Bf1 {[%emt 0:03:30]} Bc3 {[%emt 0:01:05]} 42. Bxc3 {[%emt 0:00:02]} Qxf1+ {[%emt 0:00:12]} 43. Kh2 {[%emt 0:00:02]} bxc3 {[%emt 0:00:16]} 44. Qxc3 {[%emt 0:00:03]} Qf4+ {[%emt 0:00:09]} 45. Kg1 {[%emt 0:00:12]} Qxe4 {[%emt 0:00:07]} 0-1

[Event "69th RUS-ch Women Higher League 2019"]
[Site "Yaroslavl"]
[Date "2019.07.04"]
[Round "7.23"]
[White "Loskutova, Viktoriya"]
[Black "Filippova, Darya"]
[Result "0-1"]
[ECO "B13"]
[WhiteElo "2019"]
[BlackElo "2174"]
[Annotator "NA"]
[PlyCount "140"]
[EventDate "2019.06.27"]
[EventType "swiss"]
[EventCountry "RUS"]
[SourceTitle "playchess.com"]
[Source "ChessBase"]
[SourceQuality "1"]
[TimeControl "40/5400+30:1800+30"]

1. e4 {[%emt 0:00:00]} c6 {[%emt 0:00:00]} 2. d4 {[%emt 0:00:00]} d5 {[%emt 0:00:00]} 3. exd5 {[%emt 0:00:00]} cxd5 {[%emt 0:00:00]} 4. Bd3 {[%emt 0:00:00]} Nc6 {[%emt 0:00:02]} 5. c3 {[%emt 0:00:00]} Qc7 {[%emt 0:00:24]} 6. h3 {[%emt 0:00:08]} Nf6 {[%emt 0:00:28]} 7. Na3 {[%emt 0:00:25]} a6 {[%emt 0:00:20]} 8. Nc2 {[%emt 0:00:10]} e6 {[%emt 0:00:35]} 9. Ne2 {[%emt 0:06:24]} Bd6 {[%emt 0:00:35]} 10. O-O {[%emt 0:05:14]} b5 {[%emt 0:00:57]} 11. Be3 {[%emt 0:19:46]} O-O {[%emt 0:03:33]} 12. Re1 {[%emt 0:14:10]} Na5 {[%emt 0:04:41]} 13. Bg5 {[%emt 0:04:38]} Ne4 {[%emt 0:01:02]} 14. Bh4 {[%emt 0:04:04]} f5 {[%emt 0:02:15]} 15. f3 {[%emt 0:02:12]} Nf6 {[%emt 0:00:41]} 16. Nc1 {[%emt 0:09:39]} Nh5 {[%emt 0:04:21]} 17. Bf1 {[%emt 0:05:19]} Qb6 {[%emt 0:02:03]} 18. Nd3 {[%emt 0:00:37]} h6 {[%emt 0:04:13]} 19. Bf2 {[%emt 0:06:44]} Ra7 {[%emt 0:01:08]} 20. Ne5 {[%emt 0:04:35]} g5 {[%emt 0:02:38]} 21. b4 {[%emt 0:03:41]} Nc4 {[%emt 0:02:18]} 22. a4 {[%emt 0:05:22]} Nb2 {[%emt 0:03:46]} 23. a5 {[%emt 0:00:50]} Qc7 {[%emt 0:01:10]} 24. Qd2 {[%emt 0:01:30]} Nc4 {[%emt 0:02:15]} 25. Bxc4 {[%emt 0:02:02]} bxc4 {[%emt 0:00:26]} 26. g3 {[%emt 0:01:50]} Bd7 {[%emt 0:05:31]} 27. h4 {[%emt 0:02:17]} Be8 {[%emt 0:06:59]} 28. hxg5 {[%emt 0:00:17]} hxg5 {[%emt 0:00:34]} 29. Qxg5+ {[%emt 0:00:27]} Qg7 {[%emt 0:00:21]} 30. Qxg7+ {[%emt 0:01:23]} Rxg7 {[%emt 0:00:10]} 31. Kh2 {[%emt 0:00:33]} Rf6 {[%emt 0:00:46]} 32. Rh1 {[%emt 0:01:01]} Nxg3 {[%emt 0:08:46]} 33. Bxg3 {[%emt 0:00:07]} f4 {[%emt 0:00:33]} 34. Bh4 {[%emt 0:00:55]} Rh6 {[%emt 0:00:38]} 35. Ng4 {[%emt 0:00:05]} Rxh4+ {[%emt 0:01:04]} 36. Kg2 {[%emt 0:00:03]} Rxh1 {[%emt 0:01:55]} 37. Kxh1 {[%emt 0:00:23]} Kf8 {[%emt 0:03:23]} 38. Re1 {[%emt 0:00:52]} Ke7 {[%emt 0:01:20]} 39. Rg1 {[%emt 0:00:54]} Ba4 {[%emt 0:04:24]} 40. Rg2 {[%emt 0:00:00]} Bb8 {[%emt 0:00:00]} 41. Na3 {[%emt 0:06:56]} Bd1 {[%emt 0:06:40]} 42. Nh2 {[%emt 0:00:05]} Rg3 {[%emt 0:03:50]} 43. b5 {[%emt 0:05:33]} Rxg2 {[%emt 0:01:34]} 44. Kxg2 {[%emt 0:00:01]} Kd7 {[%emt 0:00:46]} 45. bxa6 {[%emt 0:03:34]} Ba4 {[%emt 0:01:54]} 46. Nf1 {[%emt 0:06:56]} Kc6 {[%emt 0:03:38]} 47. Nd2 {[%emt 0:01:52]} Bb5 {[%emt 0:00:18]} 48. Kf2 {[%emt 0:04:44]} Bxa6 {[%emt 0:00:30]} 49. Ke1 {[%emt 0:00:28]} e5 {[%emt 0:00:56]} 50. Nc2 {[%emt 0:01:01]} Kb5 {[%emt 0:01:30]} 51. dxe5 {[%emt 0:04:26]} Bxe5 {[%emt 0:00:38]} 52. Nb1 {[%emt 0:00:39]} Kxa5 {[%emt 0:00:45]} 53. Nd4 {[%emt 0:00:59]} Ka4 {[%emt 0:03:34]} 54. Kd2 {[%emt 0:00:17]} Bc8 {[%emt 0:00:44]} 55. Kc1 {[%emt 0:00:48]} Bh3 {[%emt 0:02:14]} 56. Nc6 {[%emt 0:00:25]} Bd6 {[%emt 0:01:31]} 57. Kb2 {[%emt 0:00:34]} Bg2 {[%emt 0:01:01]} 58. Nd2 {[%emt 0:00:13]} Bc5 {[%emt 0:00:45]} 59. Kc2 {[%emt 0:00:40]} Kb5 {[%emt 0:01:59]} 60. Ne5 {[%emt 0:00:11]} Be3 {[%emt 0:00:51]} 61. Kd1 {[%emt 0:00:29]} Kc5 {[%emt 0:00:48]} 62. Ke2 {[%emt 0:00:07]} Bh3 {[%emt 0:02:33]} 63. Ng4 {[%emt 0:01:03]} Bxg4 {[%emt 0:03:07]} 64. fxg4 {[%emt 0:00:02]} Bxd2 {[%emt 0:00:15]} 65. Kxd2 {[%emt 0:00:01]} d4 {[%emt 0:00:10]} 66. g5 {[%emt 0:00:14]} dxc3+ {[%emt 0:00:07]} 67. Kxc3 {[%emt 0:00:08]} f3 {[%emt 0:00:10]} 68. g6 {[%emt 0:00:08]} f2 {[%emt 0:00:07]} 69. g7 {[%emt 0:00:04]} f1=Q {[%emt 0:00:09]} 70. g8=Q {[%emt 0:00:10]} Qc1# {[%emt 0:00:07] Kd4+} 0-1

[Event "69th RUS-ch Women Higher League 2019"]
[Site "Yaroslavl"]
[Date "2019.07.04"]
[Round "7.24"]
[White "Shaydullina, Sandugach"]
[Black "Dzutseva, Lana"]
[Result "1-0"]
[ECO "D35"]
[WhiteElo "2128"]
[BlackElo "1325"]
[Annotator "NA"]
[PlyCount "45"]
[EventDate "2019.06.27"]
[EventType "swiss"]
[EventCountry "RUS"]
[SourceTitle "playchess.com"]
[Source "ChessBase"]
[SourceQuality "1"]
[TimeControl "40/5400+30:1800+30"]

1. d4 {[%emt 0:00:00]} d5 {[%emt 0:00:00]} 2. c4 {[%emt 0:00:00]} e6 {[%emt 0:00:00]} 3. Nc3 {[%emt 0:00:00]} Nf6 {[%emt 0:00:00]} 4. cxd5 {[%emt 0:00:13]} exd5 {[%emt 0:00:00]} 5. Bg5 {[%emt 0:00:08]} c6 {[%emt 0:03:52]} 6. e3 {[%emt 0:00:13]} Bf5 {[%emt 0:00:56]} 7. Qf3 {[%emt 0:00:46]} Bg6 {[%emt 0:00:28]} 8. Bxf6 {[%emt 0:00:09]} gxf6 {[%emt 0:00:13]} 9. h4 {[%emt 0:01:33]} h5 {[%emt 0:08:40]} 10. Qd1 {[%emt 0:01:48]} Nd7 {[%emt 0:05:56]} 11. Bd3 {[%emt 0:00:20]} Rg8 {[%emt 0:16:12]} 12. Nge2 {[%emt 0:01:01]} f5 {[%emt 0:12:29]} 13. Ng3 {[%emt 0:06:38]} Qf6 {[%emt 0:01:30]} 14. Qf3 {[%emt 0:04:39]} f4 {[%emt 0:00:39]} 15. Bxg6 {[%emt 0:00:35]} fxg3 {[%emt 0:00:27]} 16. Bf5 {[%emt 0:00:48]} gxf2+ {[%emt 0:01:38]} 17. Kxf2 {[%emt 0:00:05]} Qd6 {[%emt 0:07:24]} 18. Bxd7+ {[%emt 0:06:11]} Kxd7 {[%emt 0:01:59]} 19. Ne2 {[%emt 0:01:13]} Qh6 {[%emt 0:25:35]} 20. Qf5+ {[%emt 0:01:23]} Ke7 {[%emt 0:01:43]} 21. Nf4 {[%emt 0:00:33]} Rh8 {[%emt 0:01:14]} 22. Rac1 {[%emt 0:01:21]} Qf6 {[%emt 0:02:03]} 23. Nxd5+ {[%emt 0:00:33]} 1-0

[Event "69th RUS-ch Women Higher League 2019"]
[Site "Yaroslavl"]
[Date "2019.07.05"]
[Round "8.1"]
[White "Tomilova, Elena"]
[Black "Garifullina, Leya"]
[Result "1/2-1/2"]
[ECO "A46"]
[WhiteElo "2289"]
[BlackElo "2246"]
[Annotator "NA"]
[PlyCount "78"]
[EventDate "2019.06.27"]
[EventType "swiss"]
[EventCountry "RUS"]
[SourceTitle "playchess.com"]
[Source "ChessBase"]
[SourceQuality "1"]
[TimeControl "40/5400+30:1800+30"]

1. d4 {[%emt 0:00:00]} Nf6 {[%emt 0:00:00]} 2. Nf3 {[%emt 0:00:00]} e6 {[%emt 0:00:00]} 3. Bf4 {[%emt 0:00:00]} d5 {[%emt 0:00:00]} 4. e3 {[%emt 0:00:00]} Bd6 {[%emt 0:00:00]} 5. Bg3 {[%emt 0:00:00]} O-O {[%emt 0:00:07]} 6. Nbd2 {[%emt 0:00:01]} b6 {[%emt 0:00:06]} 7. c3 {[%emt 0:00:11]} c5 {[%emt 0:00:08]} 8. Bd3 {[%emt 0:00:44]} Ba6 {[%emt 0:00:06]} 9. Bxa6 {[%emt 0:00:48]} Nxa6 {[%emt 0:00:08]} 10. Qe2 {[%emt 0:00:05]} Nc7 {[%emt 0:00:06]} 11. Rd1 {[%emt 0:06:37]} cxd4 {[%emt 0:01:54]} 12. exd4 {[%emt 0:00:22]} Nce8 {[%emt 0:00:45]} 13. Bh4 {[%emt 0:00:53]} Be7 {[%emt 0:00:25]} 14. Ne5 {[%emt 0:01:17]} Rc8 {[%emt 0:00:41]} 15. O-O {[%emt 0:00:54]} Nd6 {[%emt 0:00:21]} 16. Rfe1 {[%emt 0:05:22]} b5 {[%emt 0:03:34]} 17. Nb3 {[%emt 0:05:58]} Nc4 {[%emt 0:05:59]} 18. Nd3 {[%emt 0:11:31]} Re8 {[%emt 0:24:38]} 19. f3 {[%emt 0:09:57]} a5 {[%emt 0:02:37]} 20. Nbc5 {[%emt 0:02:40]} b4 {[%emt 0:02:36]} 21. b3 {[%emt 0:05:06]} Nd6 {[%emt 0:01:09]} 22. cxb4 {[%emt 0:00:57]} axb4 {[%emt 0:00:14]} 23. Bf2 {[%emt 0:05:25]} Qa5 {[%emt 0:06:03]} 24. Qd2 {[%emt 0:00:45]} Nb5 {[%emt 0:02:56]} 25. Rc1 {[%emt 0:01:14]} Rb8 {[%emt 0:02:16]} 26. Qxb4 {[%emt 0:06:49]} Qxa2 {[%emt 0:05:23]} 27. Ra1 {[%emt 0:05:46]} Qc2 {[%emt 0:00:29]} 28. Qa5 {[%emt 0:11:38]} Bxc5 {[%emt 0:01:37]} 29. Nxc5 {[%emt 0:00:08]} Nc3 {[%emt 0:08:29]} 30. Kf1 {[%emt 0:03:54]} Nb5 {[%emt 0:05:57]} 31. Bg3 {[%emt 0:04:32]} Nxd4 {[%emt 0:01:15]} 32. Bxb8 {[%emt 0:00:06]} Rxb8 {[%emt 0:00:20]} 33. Qc7 {[%emt 0:02:31]} Rf8 {[%emt 0:01:44]} 34. Rac1 {[%emt 0:00:36]} Qg6 {[%emt 0:04:06]} 35. Qg3 {[%emt 0:02:17]} Qh6 {[%emt 0:04:08]} 36. Qe5 {[%emt 0:00:52]} Qh4 {[%emt 0:04:42]} 37. Qg3 {[%emt 0:00:40]} Qh6 {[%emt 0:00:41]} 38. Qe5 {[%emt 0:00:08]} Qh4 {[%emt 0:00:06]} 39. Qg3 {[%emt 0:00:31]} Qh6 1/2-1/2

[Event "69th RUS-ch Women Higher League 2019"]
[Site "Yaroslavl"]
[Date "2019.07.05"]
[Round "8.2"]
[White "Bykova, Anastasia"]
[Black "Shafigullina, Zarina"]
[Result "0-1"]
[ECO "E06"]
[WhiteElo "2229"]
[BlackElo "2240"]
[Annotator "NA"]
[PlyCount "98"]
[EventDate "2019.06.27"]
[EventType "swiss"]
[EventCountry "RUS"]
[SourceTitle "playchess.com"]
[Source "ChessBase"]
[SourceQuality "1"]
[TimeControl "40/5400+30:1800+30"]

1. d4 {[%emt 0:00:00]} Nf6 {[%emt 0:00:00]} 2. c4 {[%emt 0:00:00]} e6 {[%emt 0:00:00]} 3. Nf3 {[%emt 0:00:00]} Be7 {[%emt 0:00:00]} 4. g3 {[%emt 0:00:09]} d5 {[%emt 0:00:07]} 5. Bg2 {[%emt 0:00:06]} O-O {[%emt 0:00:10]} 6. O-O {[%emt 0:00:05]} dxc4 {[%emt 0:00:04]} 7. Qc2 {[%emt 0:00:03]} a6 {[%emt 0:00:12]} 8. Qxc4 {[%emt 0:00:21]} b5 {[%emt 0:00:05]} 9. Qc2 {[%emt 0:00:08]} Bb7 {[%emt 0:00:08]} 10. Bf4 {[%emt 0:00:23]} Nc6 {[%emt 0:07:23]} 11. Rd1 {[%emt 0:05:17]} Nb4 {[%emt 0:04:37]} 12. Qc1 {[%emt 0:02:03]} Nbd5 {[%emt 0:00:42]} 13. Nbd2 {[%emt 0:12:47]} Nxf4 {[%emt 0:03:17]} 14. gxf4 {[%emt 0:00:26]} Bd6 {[%emt 0:24:02]} 15. Ne5 {[%emt 0:12:50]} Bxg2 {[%emt 0:00:13]} 16. Kxg2 {[%emt 0:00:04]} Nh5 {[%emt 0:08:35]} 17. Ndf3 {[%emt 0:03:20]} f6 {[%emt 0:05:35]} 18. Nd3 {[%emt 0:03:46]} Qe8 {[%emt 0:00:06]} 19. Kh1 {[%emt 0:09:28]} Qg6 {[%emt 0:00:42]} 20. Qc6 {[%emt 0:09:38]} Nxf4 {[%emt 0:18:40]} 21. Nxf4 {[%emt 0:00:20]} Bxf4 {[%emt 0:00:03]} 22. Qxe6+ {[%emt 0:00:22]} Kh8 {[%emt 0:00:06]} 23. Rg1 {[%emt 0:07:47]} Rae8 {[%emt 0:10:42]} 24. Qc6 {[%emt 0:14:58]} Qf5 {[%emt 0:00:52]} 25. e3 {[%emt 0:01:10]} Bd6 {[%emt 0:00:12]} 26. Rg2 {[%emt 0:00:56]} Re4 {[%emt 0:03:34]} 27. Nd2 {[%emt 0:02:07]} Rh4 {[%emt 0:01:02]} 28. Rc1 {[%emt 0:03:38]} a5 {[%emt 0:04:47]} 29. a4 {[%emt 0:09:43]} Qh5 {[%emt 0:02:26]} 30. Nf1 {[%emt 0:00:37]} bxa4 {[%emt 0:00:39]} 31. Qxa4 {[%emt 0:01:00]} Rb8 {[%emt 0:03:40]} 32. Qd7 {[%emt 0:00:17]} g6 {[%emt 0:00:13]} 33. b3 {[%emt 0:01:45]} Qf3 {[%emt 0:01:14]} 34. Qe6 {[%emt 0:00:53]} Rh5 {[%emt 0:00:35]} 35. Kg1 {[%emt 0:00:18]} Qf5 {[%emt 0:01:52]} 36. Qf7 {[%emt 0:00:42]} Rf8 {[%emt 0:00:24]} 37. Qc4 {[%emt 0:00:02]} Qb5 {[%emt 0:00:46]} 38. Nd2 {[%emt 0:00:23]} Qxc4 {[%emt 0:00:39]} 39. Nxc4 {[%emt 0:00:30]} Rb5 {[%emt 0:00:19]} 40. Kh1 {[%emt 0:00:00]} Rfb8 {[%emt 0:00:00]} 41. Ra1 {[%emt 0:11:36]} Bb4 {[%emt 0:00:50]} 42. h3 {[%emt 0:01:44]} Bc3 {[%emt 0:00:21]} 43. Ra2 {[%emt 0:02:50]} Rxb3 {[%emt 0:01:21]} 44. Rg1 {[%emt 0:00:17]} Ra8 {[%emt 0:08:50]} 45. Rc1 {[%emt 0:00:40]} a4 {[%emt 0:01:19]} 46. Kg2 {[%emt 0:03:40]} a3 {[%emt 0:01:45]} 47. Kf1 {[%emt 0:00:55]} Ra4 {[%emt 0:00:19]} 48. Ke2 {[%emt 0:07:25]} Rxc4 {[%emt 0:00:22]} 49. Kd3 {[%emt 0:00:02]} Rc6 {[%emt 0:01:03]} 0-1

[Event "69th RUS-ch Women Higher League 2019"]
[Site "Yaroslavl"]
[Date "2019.07.05"]
[Round "8.3"]
[White "Shuvalova, Polina"]
[Black "Charochkina, Daria"]
[Result "1/2-1/2"]
[ECO "B06"]
[WhiteElo "2418"]
[BlackElo "2338"]
[Annotator "NA"]
[PlyCount "100"]
[EventDate "2019.06.27"]
[EventType "swiss"]
[EventCountry "RUS"]
[SourceTitle "playchess.com"]
[Source "ChessBase"]
[SourceQuality "1"]
[TimeControl "40/5400+30:1800+30"]

1. e4 {[%emt 0:00:00]} g6 {[%emt 0:00:00]} 2. d4 {[%emt 0:00:00]} Bg7 {[%emt 0:00:00]} 3. Nc3 {[%emt 0:00:48]} d6 {[%emt 0:00:00]} 4. Nf3 {[%emt 0:00:22]} a6 {[%emt 0:00:00]} 5. Bd3 {[%emt 0:08:32]} b5 {[%emt 0:00:04]} 6. O-O {[%emt 0:00:25]} Bb7 {[%emt 0:00:13]} 7. e5 {[%emt 0:02:18]} Nd7 {[%emt 0:07:13]} 8. exd6 {[%emt 0:10:12]} cxd6 {[%emt 0:00:09]} 9. a4 {[%emt 0:00:30]} b4 {[%emt 0:00:36]} 10. Ne4 {[%emt 0:00:06]} d5 {[%emt 0:13:38]} 11. Neg5 {[%emt 0:09:16]} h6 {[%emt 0:12:22]} 12. Nh3 {[%emt 0:03:33]} a5 {[%emt 0:01:21]} 13. Qe2 {[%emt 0:11:34]} Ngf6 {[%emt 0:01:47]} 14. Nf4 {[%emt 0:05:50]} Qb6 {[%emt 0:13:54]} 15. c4 {[%emt 0:06:30]} dxc4 {[%emt 0:02:24]} 16. Bxc4 {[%emt 0:00:11]} g5 {[%emt 0:00:16]} 17. Re1 {[%emt 0:01:54]} e6 {[%emt 0:08:08]} 18. Nd3 {[%emt 0:10:02]} O-O {[%emt 0:00:35]} 19. h4 {[%emt 0:04:01]} g4 {[%emt 0:01:09]} 20. Nfe5 {[%emt 0:03:05]} Qxd4 {[%emt 0:00:32]} 21. Nxd7 {[%emt 0:10:30]} Nxd7 {[%emt 0:01:13]} 22. Bb5 {[%emt 0:00:31]} Nf6 {[%emt 0:05:46]} 23. Be3 {[%emt 0:01:11]} Qd5 {[%emt 0:03:00]} 24. Nf4 {[%emt 0:01:27]} Qf5 {[%emt 0:00:25]} 25. Rac1 {[%emt 0:01:17]} Rac8 {[%emt 0:04:18]} 26. Ba6 {[%emt 0:00:28]} Bxa6 {[%emt 0:08:51]} 27. Qxa6 {[%emt 0:00:02]} Rc2 {[%emt 0:00:10]} 28. Rxc2 {[%emt 0:01:54]} Qxc2 {[%emt 0:00:04]} 29. Qxa5 {[%emt 0:00:31]} Qxb2 {[%emt 0:00:18]} 30. Qb5 {[%emt 0:02:50]} g3 {[%emt 0:02:21]} 31. Nd3 {[%emt 0:02:26]} Qc3 {[%emt 0:01:30]} 32. Rc1 {[%emt 0:01:53]} gxf2+ {[%emt 0:00:04]} 33. Bxf2 {[%emt 0:00:13]} Qd2 {[%emt 0:01:34]} 34. Rf1 {[%emt 0:01:19]} Rd8 {[%emt 0:05:52]} 35. Nxb4 {[%emt 0:00:17]} Ng4 {[%emt 0:04:19]} 36. Nc6 {[%emt 0:00:02]} Rd7 {[%emt 0:00:16]} 37. Bc5 {[%emt 0:01:10]} Kh7 {[%emt 0:01:34]} 38. Qc4 {[%emt 0:00:21]} h5 {[%emt 0:02:19]} 39. a5 {[%emt 0:00:10]} Rd3 {[%emt 0:00:37]} 40. Qe4+ {[%emt 0:00:00]} f5 {[%emt 0:00:00]} 41. Qxe6 {[%emt 0:06:04]} Rd5 {[%emt 0:13:43]} 42. Bb6 {[%emt 0:01:25]} Qd3 {[%emt 0:01:45]} 43. Ne7 {[%emt 0:16:32]} Bd4+ {[%emt 0:01:52]} 44. Bxd4 {[%emt 0:00:05]} Qxd4+ {[%emt 0:00:01]} 45. Kh1 {[%emt 0:00:01]} Nf2+ {[%emt 0:00:21]} 46. Rxf2 {[%emt 0:00:34]} Qxh4+ {[%emt 0:00:07]} 47. Kg1 {[%emt 0:00:02]} Rd1+ {[%emt 0:00:05]} 48. Rf1 {[%emt 0:00:02]} Qd4+ {[%emt 0:00:14]} 49. Kh2 {[%emt 0:00:01]} Qh4+ {[%emt 0:00:05]} 50. Kg1 {[%emt 0:00:02]} Qd4+ {[%emt 0:00:08]} 1/2-1/2

[Event "69th RUS-ch Women Higher League 2019"]
[Site "Yaroslavl"]
[Date "2019.07.05"]
[Round "8.4"]
[White "Galliamova, Alisa"]
[Black "Solozhenkina, Elizaveta"]
[Result "1-0"]
[ECO "E06"]
[WhiteElo "2444"]
[BlackElo "2324"]
[Annotator "NA"]
[PlyCount "104"]
[EventDate "2019.06.27"]
[EventType "swiss"]
[EventCountry "RUS"]
[SourceTitle "playchess.com"]
[Source "ChessBase"]
[SourceQuality "1"]
[TimeControl "40/5400+30:1800+30"]

1. d4 {[%emt 0:00:00]} Nf6 {[%emt 0:00:00]} 2. c4 {[%emt 0:00:00]} e6 {[%emt 0:00:00]} 3. Nf3 {[%emt 0:00:05]} d5 {[%emt 0:00:00]} 4. g3 {[%emt 0:00:12]} Be7 {[%emt 0:02:36]} 5. Bg2 {[%emt 0:00:10]} O-O {[%emt 0:00:09]} 6. O-O {[%emt 0:00:16]} dxc4 {[%emt 0:00:06]} 7. Qc2 {[%emt 0:00:05]} b5 {[%emt 0:00:56]} 8. a4 {[%emt 0:00:29]} b4 {[%emt 0:00:07]} 9. Nfd2 {[%emt 0:00:33]} c6 {[%emt 0:05:10]} 10. Nxc4 {[%emt 0:00:16]} Qxd4 {[%emt 0:00:09]} 11. Rd1 {[%emt 0:00:38]} Qc5 {[%emt 0:00:24]} 12. Be3 {[%emt 0:00:12]} Qh5 {[%emt 0:00:34]} 13. Nbd2 {[%emt 0:00:17]} e5 {[%emt 0:13:51]} 14. Ne4 {[%emt 0:00:41]} Ng4 {[%emt 0:16:45]} 15. h4 {[%emt 0:00:19]} Nxe3 {[%emt 0:11:49]} 16. Nxe3 {[%emt 0:00:28]} Be6 {[%emt 0:01:32]} 17. Bf3 {[%emt 0:27:02]} Qg6 {[%emt 0:06:28]} 18. h5 {[%emt 0:01:42]} Qh6 {[%emt 0:00:09]} 19. Nd6 {[%emt 0:18:08]} Nd7 {[%emt 0:09:05]} 20. Qxc6 {[%emt 0:14:21]} Rad8 {[%emt 0:03:48]} 21. Qc7 {[%emt 0:08:36]} Bxd6 {[%emt 0:18:47]} 22. Rxd6 {[%emt 0:03:15]} Rc8 {[%emt 0:01:11]} 23. Qxa7 {[%emt 0:01:20]} Nf6 {[%emt 0:00:49]} 24. Qa5 {[%emt 0:08:51]} e4 {[%emt 0:02:11]} 25. Bg2 {[%emt 0:01:34]} b3 {[%emt 0:02:11]} 26. Rad1 {[%emt 0:03:54]} g6 {[%emt 0:02:14]} 27. hxg6 {[%emt 0:01:48]} hxg6 {[%emt 0:00:18]} 28. Qe5 {[%emt 0:02:05]} Qg7 {[%emt 0:00:54]} 29. a5 {[%emt 0:01:37]} Ra8 {[%emt 0:01:22]} 30. a6 {[%emt 0:00:45]} Ra7 {[%emt 0:00:50]} 31. Qd4 {[%emt 0:01:27]} Rfa8 {[%emt 0:00:31]} 32. Rd8+ {[%emt 0:00:57]} Kh7 {[%emt 0:00:09]} 33. Rxa8 {[%emt 0:00:32]} Rxa8 {[%emt 0:00:01]} 34. Ra1 {[%emt 0:01:43]} Nd7 {[%emt 0:01:05]} 35. Qxg7+ {[%emt 0:00:41]} Kxg7 {[%emt 0:00:01]} 36. Bxe4 {[%emt 0:00:27]} Ra7 {[%emt 0:00:03]} 37. Ra5 {[%emt 0:01:09]} Nb6 {[%emt 0:01:29]} 38. Bb7 {[%emt 0:00:49]} Kf6 {[%emt 0:00:41]} 39. Kf1 {[%emt 0:00:22]} Ke7 {[%emt 0:00:21]} 40. Ke1 {[%emt 0:00:00]} Kd6 {[%emt 0:00:00]} 41. Kd2 {[%emt 0:02:48]} Nd7 {[%emt 0:04:22]} 42. Bd5 {[%emt 0:11:24]} Nc5 {[%emt 0:04:14]} 43. Bxe6 {[%emt 0:00:46]} fxe6 {[%emt 0:01:30]} 44. Kc3 {[%emt 0:04:05]} Nxa6 {[%emt 0:01:36]} 45. Nc4+ {[%emt 0:03:07]} Kc6 {[%emt 0:00:54]} 46. f4 {[%emt 0:01:00]} Ra8 {[%emt 0:01:02]} 47. g4 {[%emt 0:02:35]} Ra7 {[%emt 0:04:09]} 48. g5 {[%emt 0:01:48]} Ra8 {[%emt 0:00:20]} 49. Ra3 {[%emt 0:02:06]} Ra7 {[%emt 0:04:18]} 50. Kxb3 {[%emt 0:01:26]} Nc5+ {[%emt 0:00:45]} 51. Kc3 {[%emt 0:00:18]} Rh7 {[%emt 0:01:13]} 52. b4 {[%emt 0:00:47]} Kd5 {[%emt 0:00:51]} 1-0